[Event "Titled Tuesday Blitz November 14 Late 2023"]
[White "Tristan, Leonardo"]
[Black "JackRodgers"]
[WhiteFideId "113816"]
[WhiteElo "2704"]
[BlackElo "2510"]
[Result "0-1"]
[Round "5"]
[TimeControl "180+1"]
[Date "2023.11.14"]
[WhiteClock "0:00:00"]
[BlackClock "0:00:05"]
[Board "66"]

1. d4 {[%clk 0:03:00]}  Nf6 {[%clk 0:02:59]} 2. Bf4 {[%clk 0:03:00]}  d6 {[%clk 0:02:57]} 3. Nc3 {[%clk 0:03:00]}  g6 {[%clk 0:02:56]} 4. e4 {[%clk 0:03:00]}  Bg7 {[%clk 0:02:57]} 5. Nf3 {[%clk 0:03:00]}  O-O {[%clk 0:02:56]} 6. Be2 {[%clk 0:03:01]}  a6 {[%clk 0:02:56]} 7. a4 {[%clk 0:03:00]}  b6 {[%clk 0:02:56]} 8. O-O {[%clk 0:02:57]}  Bb7 {[%clk 0:02:56]} 9. d5 {[%clk 0:02:51]}  c6 {[%clk 0:02:54]} 10. Re1 {[%clk 0:02:33]}  Nbd7 {[%clk 0:02:47]} 11. Bf1 {[%clk 0:02:27]}  Nc5 {[%clk 0:02:28]} 12. dxc6 {[%clk 0:01:47]}  Bxc6 {[%clk 0:02:27]} 13. e5 {[%clk 0:01:48]}  Nh5 {[%clk 0:02:14]} 14. exd6 {[%clk 0:01:37]}  exd6 {[%clk 0:01:50]} 15. Bxd6 {[%clk 0:01:34]}  Re8 {[%clk 0:01:42]} 16. a5 {[%clk 0:01:17]}  Rxe1 {[%clk 0:01:27]} 17. Nxe1 {[%clk 0:01:18]}  Ne4 {[%clk 0:01:21]} 18. Nxe4 {[%clk 0:01:10]}  Bxe4 {[%clk 0:01:22]} 19. c3 {[%clk 0:00:59]}  bxa5 {[%clk 0:01:21]} 20. Be2 {[%clk 0:00:44]}  Nf6 {[%clk 0:01:19]} 21. Be5 {[%clk 0:00:44]}  Qb6 {[%clk 0:01:05]} 22. c4 {[%clk 0:00:24]}  Ng4 {[%clk 0:00:44]} 23. Bxg4 {[%clk 0:00:10]}  Bxe5 {[%clk 0:00:44]} 24. Qe2 {[%clk 0:00:06]}  Qxb2 {[%clk 0:00:39]} 25. Ra2 {[%clk 0:00:07]}  Qxe2 {[%clk 0:00:35]} 26. Rxe2 {[%clk 0:00:08]}  f5 {[%clk 0:00:36]} 27. Bf3 {[%clk 0:00:06]}  a4 {[%clk 0:00:20]} 28. Bxe4 {[%clk 0:00:06]}  fxe4 {[%clk 0:00:21]} 29. Rxe4 {[%clk 0:00:07]}  Bf6 {[%clk 0:00:18]} 30. Nc2 {[%clk 0:00:07]}  Rb8 {[%clk 0:00:16]} 31. Kf1 {[%clk 0:00:03]}  Rb2 {[%clk 0:00:16]} 32. Na3 {[%clk 0:00:03]}  Ra2 {[%clk 0:00:13]} 33. Re6 {[%clk 0:00:03]}  Bb2 {[%clk 0:00:10]} 34. Nc2 {[%clk 0:00:02]}  Bc3 {[%clk 0:00:09]} 35. Ne3 {[%clk 0:00:02]}  a5 {[%clk 0:00:08]} 36. Re8+ {[%clk 0:00:02]}  Kf7 {[%clk 0:00:07]} 37. Rb8 {[%clk 0:00:02]}  Bb4 {[%clk 0:00:07]} 38. Rb7+ {[%clk 0:00:03]}  Kf6 {[%clk 0:00:07]} 39. Nd5+ {[%clk 0:00:04]}  Kg5 {[%clk 0:00:07]} 40. Nxb4 {[%clk 0:00:05]}  axb4 {[%clk 0:00:08]} 41. Rxb4 {[%clk 0:00:05]}  a3 {[%clk 0:00:09]} 42. g3 {[%clk 0:00:05]}  Kf5 {[%clk 0:00:09]} 43. Ra4 {[%clk 0:00:04]}  Ke5 {[%clk 0:00:09]} 44. Kg2 {[%clk 0:00:04]}  Kd4 {[%clk 0:00:10]} 45. Ra7 {[%clk 0:00:05]}  Kxc4 {[%clk 0:00:09]} 46. Rc7+ {[%clk 0:00:05]}  Kb4 {[%clk 0:00:09]} 47. Rb7+ {[%clk 0:00:05]}  Kc3 {[%clk 0:00:09]} 48. Rxh7 {[%clk 0:00:05]}  Rd2 {[%clk 0:00:08]} 49. Ra7 {[%clk 0:00:05]}  a2 {[%clk 0:00:07]} 50. Kf3 {[%clk 0:00:05]}  Kb2 {[%clk 0:00:07]} 51. Ke3 {[%clk 0:00:05]}  Rc2 {[%clk 0:00:07]} 52. f3 {[%clk 0:00:04]}  Rxh2 {[%clk 0:00:07]} 53. Kf4 {[%clk 0:00:04]}  Rh5 {[%clk 0:00:03]} 54. g4 {[%clk 0:00:04]}  Rb5 {[%clk 0:00:03]} 55. Ke4 {[%clk 0:00:03]}  g5 {[%clk 0:00:03]} 56. f4 {[%clk 0:00:02]}  Rb4+ {[%clk 0:00:03]} 57. Kf5 {[%clk 0:00:02]}  gxf4 {[%clk 0:00:04]} 58. g5 {[%clk 0:00:03]}  f3 {[%clk 0:00:04]} 59. g6 {[%clk 0:00:03]}  f2 {[%clk 0:00:04]} 60. g7 {[%clk 0:00:04]}  f1=Q+ {[%clk 0:00:04]} 61. Kg6 {[%clk 0:00:05]}  Rg4+ {[%clk 0:00:04]} 62. Kh7 {[%clk 0:00:06]}  Rxg7+ {[%clk 0:00:04]} 63. Kxg7 {[%clk 0:00:06]}  a1=Q {[%clk 0:00:05]} 64. Rf7 {[%clk 0:00:07]}  Qxf7+ {[%clk 0:00:04]} 65. Kxf7 {[%clk 0:00:00]}  Qa6 {[%clk 0:00:05]} 0-1


[Site "https://www.chess.com"]

[Event "Titled Tuesday Blitz November 14 Late 2023"]
[White "Rohan, Ahuja"]
[Black "Pesotskiy, Mikhail"]
[WhiteFideId "5090598"]
[BlackFideId "34164453"]
[WhiteElo "2699"]
[BlackElo "2510"]
[Result "1-0"]
[Round "5"]
[TimeControl "180+1"]
[Date "2023.11.14"]
[WhiteClock "0:00:07"]
[BlackClock "0:00:00"]
[Board "67"]

1. Nf3 {[%clk 0:03:00]}  Nf6 {[%clk 0:02:59]} 2. g3 {[%clk 0:03:01]}  b6 {[%clk 0:02:59]} 3. Bg2 {[%clk 0:03:01]}  Bb7 {[%clk 0:03:00]} 4. c4 {[%clk 0:03:01]}  e6 {[%clk 0:02:54]} 5. O-O {[%clk 0:03:00]}  Be7 {[%clk 0:02:51]} 6. d4 {[%clk 0:03:00]}  O-O {[%clk 0:02:46]} 7. h4 {[%clk 0:02:59]}  d6 {[%clk 0:02:37]} 8. Qc2 {[%clk 0:02:58]}  Be4 {[%clk 0:02:28]} 9. Qb3 {[%clk 0:02:57]}  Nbd7 {[%clk 0:02:25]} 10. Nc3 {[%clk 0:02:57]}  Bb7 {[%clk 0:02:25]} 11. Qc2 {[%clk 0:02:54]}  c5 {[%clk 0:02:26]} 12. d5 {[%clk 0:02:50]}  exd5 {[%clk 0:02:23]} 13. Ng5 {[%clk 0:02:51]}  h6 {[%clk 0:02:22]} 14. Nh3 {[%clk 0:02:48]}  Qc8 {[%clk 0:02:14]} 15. cxd5 {[%clk 0:02:42]}  Ne5 {[%clk 0:02:14]} 16. Nf4 {[%clk 0:02:39]}  a6 {[%clk 0:02:02]} 17. a4 {[%clk 0:02:39]}  Qd7 {[%clk 0:01:36]} 18. Qb3 {[%clk 0:02:24]}  b5 {[%clk 0:01:33]} 19. Bh3 {[%clk 0:01:45]}  Qc7 {[%clk 0:01:28]} 20. axb5 {[%clk 0:01:45]}  axb5 {[%clk 0:01:27]} 21. Nxb5 {[%clk 0:01:41]}  Qb6 {[%clk 0:01:27]} 22. Rxa8 {[%clk 0:01:25]}  Rxa8 {[%clk 0:01:28]} 23. Be3 {[%clk 0:01:08]}  Rb8 {[%clk 0:01:08]} 24. Qa4 {[%clk 0:00:39]}  Ra8 {[%clk 0:01:03]} 25. Qb3 {[%clk 0:00:37]}  Rb8 {[%clk 0:00:45]} 26. Qa4 {[%clk 0:00:30]}  Nxd5 {[%clk 0:00:45]} 27. Nxd5 {[%clk 0:00:19]}  Bxd5 {[%clk 0:00:46]} 28. Nc3 {[%clk 0:00:20]}  Bc6 {[%clk 0:00:46]} 29. Qd1 {[%clk 0:00:17]}  Nc4 {[%clk 0:00:42]} 30. Bf4 {[%clk 0:00:13]}  Nxb2 {[%clk 0:00:35]} 31. Qc2 {[%clk 0:00:13]}  Qb3 {[%clk 0:00:28]} 32. Qd2 {[%clk 0:00:10]}  Nc4 {[%clk 0:00:26]} 33. Qc1 {[%clk 0:00:09]}  Bf6 {[%clk 0:00:23]} 34. Nd1 {[%clk 0:00:09]}  Rd8 {[%clk 0:00:19]} 35. Ne3 {[%clk 0:00:08]}  d5 {[%clk 0:00:18]} 36. Nf5 {[%clk 0:00:08]}  d4 {[%clk 0:00:15]} 37. Rd1 {[%clk 0:00:08]}  Ne5 {[%clk 0:00:15]} 38. Bxe5 {[%clk 0:00:07]}  Bxe5 {[%clk 0:00:15]} 39. Rd3 {[%clk 0:00:08]}  Qd5 {[%clk 0:00:16]} 40. f3 {[%clk 0:00:07]}  c4 {[%clk 0:00:16]} 41. Rd1 {[%clk 0:00:07]}  d3 {[%clk 0:00:16]} 42. e4 {[%clk 0:00:07]}  Qc5+ {[%clk 0:00:15]} 43. Kh2 {[%clk 0:00:07]}  c3 {[%clk 0:00:16]} 44. Bf1 {[%clk 0:00:07]}  d2 {[%clk 0:00:16]} 45. Qc2 {[%clk 0:00:08]}  Qf2+ {[%clk 0:00:14]} 46. Bg2 {[%clk 0:00:08]}  Qe2 {[%clk 0:00:12]} 47. f4 {[%clk 0:00:08]}  Bb8 {[%clk 0:00:07]} 48. Ne7+ {[%clk 0:00:06]}  Kf8 {[%clk 0:00:03]} 49. Nxc6 {[%clk 0:00:07]}  Qxd1 {[%clk 0:00:03]} 50. Qxd1 {[%clk 0:00:05]}  c2 {[%clk 0:00:04]} 51. Qxc2 {[%clk 0:00:05]}  d1=Q {[%clk 0:00:05]} 52. Qc5+ {[%clk 0:00:04]}  Qd6 {[%clk 0:00:06]} 53. Qb5 {[%clk 0:00:05]}  Rc8 {[%clk 0:00:05]} 54. Ne5 {[%clk 0:00:05]}  Bc7 {[%clk 0:00:04]} 55. Nd7+ {[%clk 0:00:05]}  Kg8 {[%clk 0:00:04]} 56. Ne5 {[%clk 0:00:06]}  Rb8 {[%clk 0:00:05]} 57. Qc4 {[%clk 0:00:06]}  Qe7 {[%clk 0:00:05]} 58. Nc6 {[%clk 0:00:06]}  Qd6 {[%clk 0:00:05]} 59. Nxb8 {[%clk 0:00:07]}  Bxb8 {[%clk 0:00:06]} 60. e5 {[%clk 0:00:07]}  Qd8 {[%clk 0:00:06]} 61. Bd5 {[%clk 0:00:08]}  Qf8 {[%clk 0:00:06]} 62. Qc6 {[%clk 0:00:07]}  Kh8 {[%clk 0:00:07]} 63. Qb7 {[%clk 0:00:07]}  f6 {[%clk 0:00:06]} 64. e6 {[%clk 0:00:07]}  Bd6 {[%clk 0:00:07]} 65. Qd7 {[%clk 0:00:08]}  Qe7 {[%clk 0:00:06]} 66. Qc8+ {[%clk 0:00:07]}  Qf8 {[%clk 0:00:07]} 67. Qc6 {[%clk 0:00:07]}  Qe7 {[%clk 0:00:06]} 68. Kh3 {[%clk 0:00:07]}  f5 {[%clk 0:00:05]} 69. h5 {[%clk 0:00:07]}  Kh7 {[%clk 0:00:06]} 70. Qc8 {[%clk 0:00:07]}  g6 {[%clk 0:00:05]} 71. hxg6+ {[%clk 0:00:07]}  Kxg6 {[%clk 0:00:06]} 72. Qg8+ {[%clk 0:00:08]}  Qg7 {[%clk 0:00:07]} 73. Qe8+ {[%clk 0:00:08]}  Kf6 {[%clk 0:00:07]} 74. Qd8+ {[%clk 0:00:08]}  Qe7 {[%clk 0:00:07]} 75. Qh8+ {[%clk 0:00:08]}  Qg7 {[%clk 0:00:08]} 76. Qd8+ {[%clk 0:00:08]}  Qe7 {[%clk 0:00:09]} 77. Qc8 {[%clk 0:00:08]}  Qc7 {[%clk 0:00:06]} 78. Qa8 {[%clk 0:00:06]}  Qe7 {[%clk 0:00:04]} 79. Kg2 {[%clk 0:00:06]}  Kg6 {[%clk 0:00:03]} 80. Qa1 {[%clk 0:00:06]}  Qf6 {[%clk 0:00:03]} 81. Qd1 {[%clk 0:00:06]}  Qb2+ {[%clk 0:00:03]} 82. Kh3 {[%clk 0:00:07]}  Qf6 {[%clk 0:00:03]} 83. Qd3 {[%clk 0:00:08]}  Qe7 {[%clk 0:00:03]} 84. Bb3 {[%clk 0:00:07]}  Qf6 {[%clk 0:00:00]} 85. Qxd6 {[%clk 0:00:07]} 1-0


[Site "https://www.chess.com"]

[Event "Titled Tuesday Blitz November 14 Late 2023"]
[White "Erzhanov, Arman"]
[Black "Ahmad, Khagan"]
[WhiteFideId "4138821"]
[BlackFideId "13431552"]
[WhiteElo "2504"]
[BlackElo "2631"]
[Result "0-1"]
[Round "5"]
[TimeControl "180+1"]
[Date "2023.11.14"]
[WhiteClock "0:00:00"]
[BlackClock "0:00:02"]
[Board "69"]

1. e4 {[%clk 0:02:59]}  e5 {[%clk 0:02:58]} 2. Nf3 {[%clk 0:02:58]}  Nc6 {[%clk 0:02:59]} 3. Be2 {[%clk 0:02:57]}  Nf6 {[%clk 0:02:59]} 4. d3 {[%clk 0:02:58]}  d5 {[%clk 0:02:58]} 5. Nbd2 {[%clk 0:02:57]}  Bc5 {[%clk 0:02:57]} 6. O-O {[%clk 0:02:57]}  O-O {[%clk 0:02:56]} 7. c3 {[%clk 0:02:58]}  Bg4 {[%clk 0:02:52]} 8. b4 {[%clk 0:02:58]}  Bb6 {[%clk 0:02:51]} 9. a3 {[%clk 0:02:58]}  a5 {[%clk 0:02:49]} 10. b5 {[%clk 0:02:57]}  Ne7 {[%clk 0:02:48]} 11. Nxe5 {[%clk 0:02:55]}  Bxe2 {[%clk 0:02:48]} 12. Qxe2 {[%clk 0:02:56]}  Re8 {[%clk 0:02:48]} 13. d4 {[%clk 0:02:48]}  dxe4 {[%clk 0:02:30]} 14. Nxe4 {[%clk 0:02:46]}  Nxe4 {[%clk 0:02:29]} 15. Qxe4 {[%clk 0:02:47]}  Ng6 {[%clk 0:02:29]} 16. Qxb7 {[%clk 0:02:37]}  Nxe5 {[%clk 0:02:25]} 17. dxe5 {[%clk 0:02:38]}  Rxe5 {[%clk 0:02:26]} 18. Bf4 {[%clk 0:02:28]}  Qd5 {[%clk 0:02:19]} 19. Qxd5 {[%clk 0:01:55]}  Rxd5 {[%clk 0:02:20]} 20. Rfd1 {[%clk 0:01:39]}  Rxb5 {[%clk 0:02:15]} 21. Rd7 {[%clk 0:01:35]}  Rf5 {[%clk 0:02:04]} 22. Rad1 {[%clk 0:01:32]}  h5 {[%clk 0:01:59]} 23. Bxc7 {[%clk 0:01:31]}  Bxf2+ {[%clk 0:01:58]} 24. Kh1 {[%clk 0:01:30]}  Re8 {[%clk 0:01:56]} 25. Rd8 {[%clk 0:01:24]}  Rxd8 {[%clk 0:01:55]} 26. Rxd8+ {[%clk 0:01:25]}  Kh7 {[%clk 0:01:56]} 27. g3 {[%clk 0:01:25]}  Bc5 {[%clk 0:01:49]} 28. a4 {[%clk 0:01:24]}  Rf1+ {[%clk 0:01:45]} 29. Kg2 {[%clk 0:01:24]}  Rf2+ {[%clk 0:01:46]} 30. Kh1 {[%clk 0:01:15]}  g5 {[%clk 0:01:31]} 31. Rd5 {[%clk 0:01:13]}  Be3 {[%clk 0:01:17]} 32. Rd1 {[%clk 0:01:05]}  Ra2 {[%clk 0:01:00]} 33. Bxa5 {[%clk 0:01:04]}  Rxa4 {[%clk 0:01:00]} 34. Bb4 {[%clk 0:01:04]}  f6 {[%clk 0:00:56]} 35. Re1 {[%clk 0:01:00]}  Ba7 {[%clk 0:00:48]} 36. Rf1 {[%clk 0:00:43]}  Kg6 {[%clk 0:00:45]} 37. Be7 {[%clk 0:00:42]}  f5 {[%clk 0:00:44]} 38. Rc1 {[%clk 0:00:37]}  g4 {[%clk 0:00:39]} 39. c4 {[%clk 0:00:36]}  Be3 {[%clk 0:00:23]} 40. Re1 {[%clk 0:00:31]}  f4 {[%clk 0:00:22]} 41. gxf4 {[%clk 0:00:23]}  Bxf4 {[%clk 0:00:21]} 42. Rf1 {[%clk 0:00:09]}  Rxc4 {[%clk 0:00:20]} 43. Rf2 {[%clk 0:00:07]}  Kf5 {[%clk 0:00:16]} 44. Bd6 {[%clk 0:00:05]}  Kg5 {[%clk 0:00:15]} 45. Bxf4+ {[%clk 0:00:05]}  Rxf4 {[%clk 0:00:15]} 46. Rd2 {[%clk 0:00:05]}  Kh4 {[%clk 0:00:13]} 47. Kg2 {[%clk 0:00:06]}  Ra4 {[%clk 0:00:09]} 48. Rb2 {[%clk 0:00:06]}  Ra3 {[%clk 0:00:08]} 49. Rd2 {[%clk 0:00:06]}  Rf3 {[%clk 0:00:07]} 50. Rc2 {[%clk 0:00:06]}  Kg5 {[%clk 0:00:07]} 51. Rc5+ {[%clk 0:00:06]}  Rf5 {[%clk 0:00:08]} 52. Rc8 {[%clk 0:00:06]}  Ra5 {[%clk 0:00:07]} 53. Rc2 {[%clk 0:00:05]}  h4 {[%clk 0:00:06]} 54. Rb2 {[%clk 0:00:05]}  h3+ {[%clk 0:00:06]} 55. Kf2 {[%clk 0:00:04]}  Kh4 {[%clk 0:00:04]} 56. Rc2 {[%clk 0:00:04]}  Ra1 {[%clk 0:00:02]} 57. Re2 {[%clk 0:00:00]}  Rh1 {[%clk 0:00:02]} 0-1


[Site "https://www.chess.com"]

[Event "Titled Tuesday Blitz November 14 Late 2023"]
[White "Thomforde-Toates, Noah"]
[Black "Hajiyev, Kanan"]
[WhiteFideId "30951992"]
[BlackFideId "13404148"]
[WhiteElo "2623"]
[BlackElo "2497"]
[Result "1-0"]
[Round "5"]
[TimeControl "180+1"]
[Date "2023.11.14"]
[WhiteClock "0:01:39"]
[BlackClock "0:00:22"]
[Board "70"]

1. d4 {[%clk 0:03:00]}  d5 {[%clk 0:03:00]} 2. Nc3 {[%clk 0:03:00]}  c5 {[%clk 0:03:01]} 3. e4 {[%clk 0:02:59]}  cxd4 {[%clk 0:02:58]} 4. Qxd4 {[%clk 0:02:52]}  dxe4 {[%clk 0:02:49]} 5. Qxd8+ {[%clk 0:02:53]}  Kxd8 {[%clk 0:02:50]} 6. Nxe4 {[%clk 0:02:48]}  Bf5 {[%clk 0:02:46]} 7. Bd3 {[%clk 0:02:46]}  Bxe4 {[%clk 0:02:41]} 8. Bxe4 {[%clk 0:02:46]}  Nc6 {[%clk 0:02:42]} 9. Bf4 {[%clk 0:02:44]}  Nf6 {[%clk 0:02:42]} 10. O-O-O+ {[%clk 0:02:43]}  Ke8 {[%clk 0:02:36]} 11. Bf3 {[%clk 0:02:42]}  e6 {[%clk 0:02:33]} 12. Ne2 {[%clk 0:02:41]}  Bc5 {[%clk 0:02:32]} 13. Nc3 {[%clk 0:02:40]}  Rd8 {[%clk 0:02:25]} 14. Nb5 {[%clk 0:02:35]}  Ke7 {[%clk 0:02:13]} 15. Bc7 {[%clk 0:02:26]}  Rxd1+ {[%clk 0:02:12]} 16. Rxd1 {[%clk 0:02:27]}  a6 {[%clk 0:01:56]} 17. Bd6+ {[%clk 0:02:17]}  Bxd6 {[%clk 0:01:56]} 18. Nxd6 {[%clk 0:02:17]}  Ne5 {[%clk 0:01:55]} 19. Bxb7 {[%clk 0:02:13]}  Nd5 {[%clk 0:01:27]} 20. Bxd5 {[%clk 0:02:07]}  Kxd6 {[%clk 0:01:27]} 21. Bc4+ {[%clk 0:02:07]}  Kc7 {[%clk 0:01:08]} 22. Bxa6 {[%clk 0:02:06]}  Ra8 {[%clk 0:01:07]} 23. Be2 {[%clk 0:02:06]}  Rxa2 {[%clk 0:01:07]} 24. Kb1 {[%clk 0:02:07]}  Ra5 {[%clk 0:01:06]} 25. Rd4 {[%clk 0:02:04]}  g6 {[%clk 0:01:03]} 26. f4 {[%clk 0:02:02]}  Nc6 {[%clk 0:01:02]} 27. Rc4 {[%clk 0:02:01]}  Kd6 {[%clk 0:01:02]} 28. Bf3 {[%clk 0:02:01]}  Ne7 {[%clk 0:00:58]} 29. b4 {[%clk 0:01:57]}  Ra4 {[%clk 0:00:56]} 30. Kb2 {[%clk 0:01:56]}  Nd5 {[%clk 0:00:51]} 31. Bxd5 {[%clk 0:01:49]}  Kxd5 {[%clk 0:00:51]} 32. Kb3 {[%clk 0:01:48]}  Ra1 {[%clk 0:00:50]} 33. Rc7 {[%clk 0:01:46]}  f5 {[%clk 0:00:46]} 34. Rxh7 {[%clk 0:01:45]}  Rf1 {[%clk 0:00:39]} 35. g3 {[%clk 0:01:44]}  Rb1+ {[%clk 0:00:32]} 36. Kc3 {[%clk 0:01:44]}  Ke4 {[%clk 0:00:30]} 37. Re7 {[%clk 0:01:42]}  Kd5 {[%clk 0:00:30]} 38. Rg7 {[%clk 0:01:40]}  Rh1 {[%clk 0:00:22]} 39. h4 {[%clk 0:01:39]} 1-0


[Site "https://www.chess.com"]

[Event "Titled Tuesday Blitz November 14 Late 2023"]
[White "Grossboss19"]
[Black "Fiorito, Francisco"]
[BlackFideId "180165"]
[WhiteElo "2456"]
[BlackElo "2599"]
[Result "1/2-1/2"]
[Round "5"]
[TimeControl "180+1"]
[Date "2023.11.14"]
[WhiteClock "0:00:06"]
[BlackClock "0:00:05"]
[Board "74"]

1. c4 {[%clk 0:02:56]}  Nf6 {[%clk 0:02:58]} 2. Nc3 {[%clk 0:02:54]}  d5 {[%clk 0:02:54]} 3. cxd5 {[%clk 0:02:51]}  Nxd5 {[%clk 0:02:55]} 4. Nf3 {[%clk 0:02:48]}  Nxc3 {[%clk 0:02:49]} 5. bxc3 {[%clk 0:02:47]}  e6 {[%clk 0:02:50]} 6. Ba3 {[%clk 0:02:43]}  Bxa3 {[%clk 0:02:46]} 7. Qa4+ {[%clk 0:02:41]}  Nd7 {[%clk 0:02:44]} 8. Qxa3 {[%clk 0:02:37]}  c5 {[%clk 0:02:42]} 9. g3 {[%clk 0:02:36]}  O-O {[%clk 0:02:41]} 10. Bg2 {[%clk 0:02:34]}  Qc7 {[%clk 0:02:35]} 11. O-O {[%clk 0:02:34]}  b6 {[%clk 0:02:32]} 12. Ne1 {[%clk 0:02:32]}  Bb7 {[%clk 0:02:31]} 13. c4 {[%clk 0:02:27]}  Bxg2 {[%clk 0:02:23]} 14. Nxg2 {[%clk 0:02:19]}  Ne5 {[%clk 0:02:23]} 15. d3 {[%clk 0:02:12]}  Rad8 {[%clk 0:02:18]} 16. Qc3 {[%clk 0:02:07]}  Nc6 {[%clk 0:02:17]} 17. Ne3 {[%clk 0:01:57]}  h5 {[%clk 0:02:12]} 18. h4 {[%clk 0:01:53]}  Rfe8 {[%clk 0:02:03]} 19. Rfe1 {[%clk 0:01:49]}  g6 {[%clk 0:01:51]} 20. a4 {[%clk 0:01:43]}  Qe7 {[%clk 0:01:49]} 21. Nc2 {[%clk 0:01:30]}  g5 {[%clk 0:01:46]} 22. hxg5 {[%clk 0:01:28]}  Qxg5 {[%clk 0:01:47]} 23. Kg2 {[%clk 0:01:24]}  Nd4 {[%clk 0:01:35]} 24. Nxd4 {[%clk 0:01:23]}  Rxd4 {[%clk 0:01:36]} 25. Qc1 {[%clk 0:01:21]}  Qg6 {[%clk 0:01:31]} 26. Rh1 {[%clk 0:01:13]}  Rg4 {[%clk 0:01:23]} 27. Qe3 {[%clk 0:01:08]}  f6 {[%clk 0:01:04]} 28. Rag1 {[%clk 0:01:03]}  Kf7 {[%clk 0:01:01]} 29. Kf1 {[%clk 0:00:50]}  Re7 {[%clk 0:00:53]} 30. f3 {[%clk 0:00:42]}  Rg5 {[%clk 0:00:52]} 31. Qe4 {[%clk 0:00:35]}  Qxe4 {[%clk 0:00:46]} 32. fxe4 {[%clk 0:00:32]}  Kg6 {[%clk 0:00:39]} 33. Rh4 {[%clk 0:00:25]}  f5 {[%clk 0:00:34]} 34. exf5+ {[%clk 0:00:21]}  exf5 {[%clk 0:00:30]} 35. Kf2 {[%clk 0:00:18]}  Rg4 {[%clk 0:00:27]} 36. Rxg4+ {[%clk 0:00:18]}  hxg4 {[%clk 0:00:20]} 37. Rh1 {[%clk 0:00:17]}  Re8 {[%clk 0:00:15]} 38. a5 {[%clk 0:00:15]}  Rb8 {[%clk 0:00:07]} 39. Ra1 {[%clk 0:00:12]}  Kf6 {[%clk 0:00:07]} 40. axb6 {[%clk 0:00:09]}  axb6 {[%clk 0:00:07]} 41. Ra7 {[%clk 0:00:10]}  Ke5 {[%clk 0:00:07]} 42. Ke3 {[%clk 0:00:10]}  Rh8 {[%clk 0:00:07]} 43. Re7+ {[%clk 0:00:09]}  Kf6 {[%clk 0:00:06]} 44. Rb7 {[%clk 0:00:09]}  Rh3 {[%clk 0:00:06]} 45. Kf4 {[%clk 0:00:08]}  Rh2 {[%clk 0:00:05]} 46. Rxb6+ {[%clk 0:00:08]}  Ke7 {[%clk 0:00:05]} 47. e3 {[%clk 0:00:08]}  Rf2+ {[%clk 0:00:05]} 48. Ke5 {[%clk 0:00:07]}  Rf3 {[%clk 0:00:06]} 49. Rb7+ {[%clk 0:00:07]}  Kd8 {[%clk 0:00:07]} 50. d4 {[%clk 0:00:06]}  Rxe3+ {[%clk 0:00:06]} 51. Kd5 {[%clk 0:00:06]}  cxd4 {[%clk 0:00:07]} 52. Kxd4 {[%clk 0:00:06]}  Rxg3 {[%clk 0:00:07]} 53. Ke5 {[%clk 0:00:07]}  Rf3 {[%clk 0:00:07]} 54. c5 {[%clk 0:00:07]}  g3 {[%clk 0:00:07]} 55. Rg7 {[%clk 0:00:07]}  f4 {[%clk 0:00:07]} 56. c6 {[%clk 0:00:07]}  Rf2 {[%clk 0:00:06]} 57. Kd6 {[%clk 0:00:07]}  Rd2+ {[%clk 0:00:07]} 58. Ke5 {[%clk 0:00:07]}  Rf2 {[%clk 0:00:02]} 59. Kd6 {[%clk 0:00:07]}  Rd2+ {[%clk 0:00:02]} 60. Ke5 {[%clk 0:00:07]}  g2 {[%clk 0:00:03]} 61. Kxf4 {[%clk 0:00:06]}  Kc8 {[%clk 0:00:04]} 62. Kf3 {[%clk 0:00:06]}  Rc2 {[%clk 0:00:03]} 63. Rxg2 {[%clk 0:00:06]}  Rc3+ {[%clk 0:00:04]} 64. Ke4 {[%clk 0:00:06]}  Rxc6 {[%clk 0:00:05]} 65. Kd5 {[%clk 0:00:06]}  Kb7 {[%clk 0:00:04]} 66. Rb2+ {[%clk 0:00:06]}  Rb6 {[%clk 0:00:05]} 67. Rxb6+ {[%clk 0:00:06]}  Kxb6 {[%clk 0:00:05]} 1/2-1/2


[Site "https://www.chess.com"]

[Event "Titled Tuesday Blitz November 14 Late 2023"]
[White "Nikologorsky, Matfei"]
[Black "Sanchez Alvares, Kelvin Antonio"]
[WhiteFideId "24102474"]
[BlackFideId "3906680"]
[WhiteElo "2435"]
[BlackElo "2580"]
[Result "1-0"]
[Round "5"]
[TimeControl "180+1"]
[Date "2023.11.14"]
[WhiteClock "0:00:20"]
[BlackClock "0:00:12"]
[Board "75"]

1. e4 {[%clk 0:02:59]}  e5 {[%clk 0:02:53]} 2. Nf3 {[%clk 0:02:59]}  Nc6 {[%clk 0:02:53]} 3. Bb5 {[%clk 0:02:58]}  a6 {[%clk 0:02:53]} 4. Ba4 {[%clk 0:02:58]}  b5 {[%clk 0:02:53]} 5. Bb3 {[%clk 0:02:57]}  Nf6 {[%clk 0:02:54]} 6. O-O {[%clk 0:02:56]}  Be7 {[%clk 0:02:54]} 7. d3 {[%clk 0:02:54]}  O-O {[%clk 0:02:54]} 8. c3 {[%clk 0:02:54]}  d5 {[%clk 0:02:51]} 9. exd5 {[%clk 0:02:50]}  Nxd5 {[%clk 0:02:51]} 10. h3 {[%clk 0:02:42]}  Bf6 {[%clk 0:02:47]} 11. a4 {[%clk 0:02:42]}  Rb8 {[%clk 0:02:47]} 12. Re1 {[%clk 0:02:41]}  Be6 {[%clk 0:02:31]} 13. axb5 {[%clk 0:02:14]}  axb5 {[%clk 0:02:27]} 14. Ra6 {[%clk 0:02:06]}  Qd7 {[%clk 0:01:51]} 15. Nbd2 {[%clk 0:01:49]}  Ra8 {[%clk 0:00:58]} 16. Rxa8 {[%clk 0:01:46]}  Rxa8 {[%clk 0:00:57]} 17. Ne4 {[%clk 0:01:47]}  Be7 {[%clk 0:00:57]} 18. Neg5 {[%clk 0:01:41]}  Bf6 {[%clk 0:00:44]} 19. Nxe6 {[%clk 0:01:40]}  fxe6 {[%clk 0:00:45]} 20. Qe2 {[%clk 0:01:28]}  Rf8 {[%clk 0:00:42]} 21. Ng5 {[%clk 0:01:17]}  Bxg5 {[%clk 0:00:34]} 22. Bxg5 {[%clk 0:01:16]}  h6 {[%clk 0:00:33]} 23. Bc1 {[%clk 0:01:10]}  Kh7 {[%clk 0:00:32]} 24. Qe4+ {[%clk 0:01:10]}  Kh8 {[%clk 0:00:30]} 25. Qg4 {[%clk 0:01:01]}  Rf6 {[%clk 0:00:28]} 26. Re4 {[%clk 0:00:50]}  Kh7 {[%clk 0:00:24]} 27. Qe2 {[%clk 0:00:43]}  b4 {[%clk 0:00:19]} 28. Bd2 {[%clk 0:00:37]}  bxc3 {[%clk 0:00:18]} 29. bxc3 {[%clk 0:00:38]}  Rg6 {[%clk 0:00:17]} 30. Ba4 {[%clk 0:00:34]}  Nb6 {[%clk 0:00:12]} 31. Bxc6 {[%clk 0:00:29]}  Qxc6 {[%clk 0:00:13]} 32. g3 {[%clk 0:00:29]}  Nd7 {[%clk 0:00:13]} 33. Rc4 {[%clk 0:00:29]}  Qd6 {[%clk 0:00:13]} 34. Qe4 {[%clk 0:00:29]}  c6 {[%clk 0:00:13]} 35. Rxc6 {[%clk 0:00:29]}  Qe7 {[%clk 0:00:13]} 36. h4 {[%clk 0:00:28]}  Nf6 {[%clk 0:00:13]} 37. Qxe5 {[%clk 0:00:27]}  Qf7 {[%clk 0:00:13]} 38. Rc7 {[%clk 0:00:27]}  Qf8 {[%clk 0:00:13]} 39. h5 {[%clk 0:00:26]}  Rg5 {[%clk 0:00:11]} 40. Bxg5 {[%clk 0:00:26]}  hxg5 {[%clk 0:00:12]} 41. Qxg5 {[%clk 0:00:26]}  Nd5 {[%clk 0:00:12]} 42. Qg6+ {[%clk 0:00:26]}  Kh8 {[%clk 0:00:12]} 43. Rd7 {[%clk 0:00:23]}  Ne7 {[%clk 0:00:12]} 44. Qe4 {[%clk 0:00:22]}  Nf5 {[%clk 0:00:12]} 45. Ra7 {[%clk 0:00:21]}  Qf6 {[%clk 0:00:12]} 46. Ra8+ {[%clk 0:00:20]}  Kh7 {[%clk 0:00:12]} 47. g4 {[%clk 0:00:21]}  Qg5 {[%clk 0:00:12]} 48. Ra5 {[%clk 0:00:19]}  Qc1+ {[%clk 0:00:10]} 49. Kg2 {[%clk 0:00:19]}  Qg5 {[%clk 0:00:11]} 50. Rxf5 {[%clk 0:00:19]}  exf5 {[%clk 0:00:11]} 51. Qxf5+ {[%clk 0:00:19]}  Qxf5 {[%clk 0:00:12]} 52. gxf5 {[%clk 0:00:20]}  Kh6 {[%clk 0:00:12]} 53. Kf3 {[%clk 0:00:20]} 1-0


[Site "https://www.chess.com"]